bitfinex-derivatives/quotes_SOLF0:USTF0_20240904
["timestamp","ask_amount","ask_price","bid_price","bid_amount"]
[1725473004926,3.81108194,132.93,132.9,3.8193476]
[1725473005726,3.81108194,132.93,132.91,3.7617]
[1725473006418,3.7615,132.92,132.9,0.0574476]
[1725473006718,3.73118603,132.92,132.9,0.0574476]
[1725473008330,3.7617,132.91,132.9,0.0574476]
[1725473010230,3.7617,132.91,132.82,4.0088]
[1725473010427,3.7631,132.86,132.78,7.5304]
[1725473010633,3.7631,132.86,132.81,3.79910823]
[1725473010828,3.7631,132.86,132.83,3.7638]
[1725473011231,3.7629,132.87,132.81,3.79910823]
[1725473011429,0.05302208,132.86,132.84,3.7636]
[1725473012231,0.05302208,132.86,132.83,0.05109019]
[1725473012829,3.7636,132.85,132.83,0.05109019]
[1725473013331,0.05302208,132.86,132.83,0.05109019]
[1725473013532,0.05302208,132.86,132.84,3.7636]
[1725473013735,0.05302208,132.86,132.83,0.05109019]
[1725473013931,0.05302208,132.86,132.85,3.7634]
[1725473016438,0.05302208,132.86,132.85,26.9034]
[1725473017635,3.7624,132.89,132.87,3.7627]
[1725473017834,3.7624,132.89,132.85,23.14]
[1725473018235,3.7624,132.89,132.86,3.7631]
[1725473018748,3.81603312,132.89,132.86,3.8172716]
[1725473021446,3.81603312,132.89,132.87,3.7628]
[1725473024947,0.05363312,132.89,132.88,13.0026]
[1725473025154,0.05363312,132.89,132.86,0.0541716]
[1725473025551,0.05363312,132.89,132.86,9.2941716]
[1725473025748,0.05363312,132.89,132.87,3.7627]
[1725473026054,0.05363312,132.89,132.86,9.2941716]
[1725473026956,0.05363312,132.89,132.87,9.24]
[1725473027449,0.05363312,132.89,132.88,3.7626]
[1725473031160,0.05363312,132.89,132.86,9.2941716]
[1725473031857,3.81603312,132.89,132.87,3.7627]
[1725473033755,3.7626,132.88,132.86,13.0571716]
[1725473034163,3.81603312,132.89,132.87,3.7628]
[1725473035958,0.05363312,132.89,132.87,3.7627]
[1725473036159,0.05363312,132.89,132.88,9.24]
[1725473036753,0.05363312,132.89,132.88,16.72428284]
[1725473036959,103.27647397,132.94,132.88,12.96168284]
[1725473037154,103.27647397,132.94,132.91,9.24]
[1725473037357,3.7613,132.93,132.91,9.24]
[1725473038059,3.7613,132.93,132.91,13.05667671]
[1725473038263,13.0014,132.92,132.91,0.05497671]
[1725473038463,12.98125084,132.92,132.84,13.0037]
[1725473038766,9.24,132.9,132.84,9.24]
[1725473038966,9.24,132.9,132.84,12.97033792]
[1725473039158,9.24,132.9,132.85,3.7633]
[1725473039365,3.7624,132.89,132.85,3.7633]
[1725473039564,3.81120199,132.89,132.86,0.04820847]
[1725473039761,3.81120199,132.89,132.86,3.81120847]
[1725473040166,3.81120199,132.89,132.86,0.04820847]
[1725473040167,3.7626,132.88,132.86,0.04820847]
[1725473040768,3.81120199,132.89,132.86,0.04820847]
[1725473041268,0.04880199,132.89,132.86,0.04820847]
[1725473041463,0.04880199,132.89,132.86,23.15820847]
[1725473041859,0.04880199,132.89,132.88,26.8726]
[1725473042066,24.5406,132.98,132.88,23.11]
[1725473042266,3.761,132.94,132.9,23.11]
[1725473042568,3.761,132.94,132.91,3.7616]
[1725473042962,3.7607,132.95,132.92,26.8713]
[1725473043162,3.7607,132.95,132.92,26.92753661]
[1725473043362,1.4306,132.98,132.92,26.92753661]
[1725473043558,3.7605,132.96,132.92,26.92753661]
[1725473044061,1.4306,132.98,132.92,26.92753661]
[1725473044262,24.5406,132.98,132.92,0.05623661]
[1725473044767,3.7608,132.95,132.92,0.05623661]
[1725473045170,24.5406,132.98,132.92,0.05623661]
[1725473045361,3.7611,132.93,132.92,0.05623661]
[1725473045563,1.4306,132.98,132.84,3.73033792]
[1725473045564,23.11,132.94,132.84,3.73033792]
[1725473045769,23.11,132.94,132.84,23.11]
[1725473046073,1.367,132.93,132.84,26.83573363]
[1725473046370,3.7622,132.9,132.84,26.83573363]
[1725473046565,0.05490589,132.88,132.86,23.15958798]
[1725473047768,0.05490589,132.88,132.87,3.7627]
[1725473047964,2.8164,132.97,132.9,23.11]
[1725473048270,25.9264,132.97,132.88,23.11]
[1725473048571,23.11,132.95,132.87,23.11]
[1725473048872,3.7621,132.9,132.87,26.8727]
[1725473049170,3.7621,132.9,132.87,26.92434245]
[1725473049372,3.7621,132.9,132.87,3.81434245]
[1725473050764,3.7618,132.91,132.87,0.05164245]
[1725473051067,23.11,132.96,132.88,23.16119666]
[1725473051366,23.11,132.96,132.91,0.05408866]
[1725473051770,2.8164,132.97,132.91,0.05408866]
[1725473051973,228.0,133.04,132.93,23.11]
[1725473052270,3.7598,132.98,132.95,0.04993236]
[1725473053062,3.76,132.97,132.95,0.04993236]
[1725473053460,3.7603,132.96,132.95,0.04993236]
[1725473055170,3.7601,132.97,132.95,0.04993236]
[1725473055566,23.11,133.0,132.95,0.04993236]
[1725473056276,23.11,133.01,132.95,0.04993236]
[1725473056572,3.7048657,133.0,132.95,0.04993236]
[1725473057072,2.7512,133.02,132.95,23.15993236]
[1725473057270,3.7596,132.99,132.95,26.92043236]
[1725473057574,3.69659088,133.0,132.95,3.81043236]
[1725473057764,25.8612,133.02,132.95,0.04993236]
[1725473058871,23.11,133.0,132.95,0.04993236]
[1725473059074,26.93823585,133.0,132.95,0.04993236]
[1725473059270,3.7603,132.96,132.95,0.04993236]
[1725473062469,3.7603,132.96,132.9,24.5568]
[1725473062470,3.7612,132.93,132.9,3.7619]
[1725473063170,3.761,132.94,132.91,3.7615]
[1725473063373,3.81174015,132.94,132.91,3.80969287]
[1725473065375,3.81174015,132.94,132.92,3.7614]
[1725473067177,3.81174015,132.94,132.91,3.80979287]
[1725473068478,0.05074015,132.94,132.91,0.04819287]
[1725473069079,3.7614,132.92,132.91,0.04819287]
[1725473071783,3.7613,132.93,132.91,0.04819287]
[1725473072081,0.05074015,132.94,132.91,0.04819287]
[1725473072277,3.7611,132.93,132.91,3.80989287]
[1725473072484,0.05074015,132.94,132.91,3.80989287]
[1725473072982,3.81174015,132.94,132.91,3.80989287]
[1725473074479,3.7611,132.93,132.91,3.80989287]
[1725473074885,0.05074015,132.94,132.91,3.80989287]
[1725473075082,3.81174015,132.94,132.92,3.7614]
[1725473075383,0.05074015,132.94,132.91,0.04819287]
[1725473075582,0.05074015,132.94,132.92,23.11]
[1725473076177,0.05074015,132.94,132.93,3.7611]
[1725473081985,23.16074015,132.94,132.81,7.5288]
[1725473082281,3.75677099,132.93,132.87,3.74510984]
[1725473082480,1.3671,132.95,132.88,23.11]
[1725473082681,3.76542281,132.94,132.88,23.11]
[1725473082881,0.0496254,132.92,132.9,0.05187478]
[1725473083078,3.85495034,132.91,132.9,0.05187478]
[1725473083980,7.61665034,132.91,132.9,0.05187478]
[1725473085595,3.7629,132.87,132.84,23.11]
[1725473085782,3.7629,132.87,132.83,2.7801]
[1725473086587,0.05313476,132.86,132.84,0.05428461]
[1725473086787,0.05313476,132.86,132.84,0.05556467]
[1725473087787,3.7636,132.85,132.84,0.05556467]
[1725473089481,23.16313476,132.86,132.73,3.6789046]
[1725473089695,23.11,132.83,132.74,23.11]
[1725473090388,3.7651,132.8,132.76,3.7658]
[1725473090584,0.05121567,132.8,132.77,0.05203011]
[1725473090995,3.8886453,132.8,132.77,0.05203011]
[1725473091185,26.9986453,132.8,132.77,0.05203011]
[1725473091391,26.94742963,132.8,132.7,3.7675]
[1725473091779,3.7668,132.73,132.7,3.7675]
[1725473092184,26.94742963,132.8,132.7,3.7675]
[1725473092185,23.11,132.78,132.7,3.7675]
[1725473092385,23.11,132.78,132.73,0.04850238]
[1725473092386,3.7667,132.74,132.73,0.04850238]
[1725473095989,0.05511138,132.75,132.73,0.04850238]
[1725473097291,3.82141138,132.75,132.73,0.04850238]
[1725473097492,0.05511138,132.75,132.73,0.04850238]
[1725473098186,0.05511138,132.75,132.74,3.7665]
[1725473101498,0.05511138,132.75,132.73,0.04850238]
[1725473101896,0.05511138,132.75,132.74,3.7665]
[1725473102200,0.05511138,132.75,132.73,0.04850238]
[1725473102604,0.05511138,132.75,132.74,3.7665]
[1725473103694,0.05511138,132.75,132.73,0.04850238]
[1725473104097,3.7665,132.74,132.73,0.04850238]
[1725473104296,0.05511138,132.75,132.73,0.04850238]
[1725473104900,3.82151138,132.75,132.73,0.04850238]
[1725473105301,0.05511138,132.75,132.73,0.04850238]
[1725473105895,3.82151138,132.75,132.73,0.04850238]
[1725473106096,0.05511138,132.75,132.73,3.81530238]
[1725473106605,0.05511138,132.75,132.74,3.7665]
[1725473106806,0.05511138,132.75,132.73,0.04850238]
[1725473107806,0.05511138,132.75,132.73,3.81510238]
[1725473108507,0.05511138,132.75,132.73,0.04850238]
[1725473110213,3.7665,132.74,132.73,0.04850238]
[1725473110416,23.11,132.74,132.67,1.3497]
[1725473110610,24.5447,132.74,132.67,1.3497]
[1725473110815,3.7678,132.7,132.67,5.1181]
[1725473111414,3.7678,132.7,132.67,3.7684]
[1725473111614,3.82480933,132.7,132.67,3.81995611]
[1725473112222,0.05700933,132.7,132.68,3.7682]
[1725473113015,0.05700933,132.7,132.67,0.05155611]
[1725473114323,3.768,132.69,132.67,0.05155611]
[1725473114524,0.05700933,132.7,132.67,0.05155611]
[1725473114525,23.16700933,132.7,132.67,0.05155611]
[1725473114717,23.11,132.69,132.56,1.3731]
[1725473114918,3.7699,132.63,132.6,3.7704]
[1725473115229,23.11,132.65,132.56,2.8061]
[1725473115230,23.11,132.67,132.58,23.11]
[1725473115427,3.7693,132.65,132.58,23.11]
[1725473116025,0.05014589,132.63,132.61,3.77]
[1725473116222,0.05014589,132.63,132.62,3.76262686]
[1725473116423,0.05014589,132.63,132.62,7.51745223]
[1725473117027,0.05014589,132.63,132.62,3.7699]
[1725473117424,0.05014589,132.63,132.61,3.7701]
[1725473118129,0.05014589,132.63,132.62,3.7699]
[1725473118723,0.05014589,132.63,132.61,3.77]
[1725473119032,0.05014589,132.63,132.6,0.05643412]
[1725473119434,0.05014589,132.63,132.61,3.77]
[1725473119726,0.05014589,132.63,132.6,0.05643412]
[1725473119931,0.05014589,132.63,132.6,3.82683412]
[1725473120231,0.05014589,132.63,132.6,0.05643412]
[1725473120422,0.05014589,132.63,132.61,3.77]
[1725473120825,0.05014589,132.63,132.6,0.05643412]
[1725473121022,0.05014589,132.63,132.61,3.7702]
[1725473122021,0.05014589,132.63,132.62,3.7699]
[1725473124127,0.05014589,132.63,132.62,26.8799]
[1725473124332,0.05014589,132.63,132.62,30.69173597]
[1725473124926,24.4949,132.71,132.64,3.7691]
[1725473125434,3.7687,132.67,132.64,3.7691]
[1725473126126,3.7689,132.66,132.64,0.05089553]
[1725473126834,3.7691,132.65,132.64,0.05089553]
[1725473127433,0.04883573,132.67,132.64,0.05089553]
[1725473128429,3.7688,132.66,132.64,0.05089553]
[1725473128623,0.04883573,132.67,132.64,0.05089553]
[1725473129636,3.7688,132.66,132.64,0.05089553]
[1725473129836,0.04883573,132.67,132.64,0.05089553]
[1725473130629,3.769,132.66,132.64,0.05089553]
[1725473131035,0.04883573,132.67,132.64,0.05089553]
[1725473131437,0.04883573,132.67,132.64,23.16089553]
[1725473131635,0.04883573,132.67,132.66,3.7688]
[1725473132534,3.81733573,132.67,132.64,3.82019553]
[1725473132729,0.04883573,132.67,132.64,23.16089553]
[1725473133135,0.04883573,132.67,132.66,3.7688]
[1725473135237,0.04883573,132.67,132.65,3.769]
[1725473135440,0.04883573,132.67,132.64,0.05089553]
[1725473137440,0.04883573,132.67,132.65,3.7689]
[1725473138041,0.04883573,132.67,132.66,3.7688]
[1725473138643,0.04883573,132.67,132.65,3.769]
[1725473139246,0.04883573,132.67,132.66,3.7688]
[1725473139647,0.04883573,132.67,132.64,0.05089553]
[1725473139842,0.04883573,132.67,132.65,3.7689]
[1725473140245,0.04883573,132.67,132.65,3.7691]
[1725473141049,0.04883573,132.67,132.66,3.7688]
[1725473141544,3.81743573,132.67,132.64,0.05089553]
[1725473141947,0.04883573,132.67,132.64,3.82009553]
[1725473142153,3.7689,132.66,132.64,3.82009553]
[1725473142548,0.04883573,132.67,132.64,0.05089553]
[1725473143345,3.81743573,132.67,132.64,0.05089553]
[1725473144049,3.81743573,132.67,132.64,3.82009553]
[1725473144240,3.7688,132.66,132.64,3.82009553]
[1725473144439,3.7688,132.66,132.64,0.05089553]
[1725473144645,0.04883573,132.67,132.64,0.05089553]
[1725473145243,3.7688,132.66,132.64,0.05089553]
[1725473145646,3.7688,132.66,132.64,3.82019553]
[1725473147347,3.81733573,132.67,132.65,3.7691]
[1725473147550,0.04883573,132.67,132.64,0.05089553]
[1725473147946,3.81753573,132.67,132.64,0.05089553]
[1725473148445,0.04883573,132.67,132.66,3.7688]
[1725473148647,0.04883573,132.67,132.64,0.05089553]
[1725473149645,3.81743573,132.67,132.64,3.81999553]
[1725473150652,3.7689,132.66,132.64,3.81999553]
[1725473151955,0.04883573,132.67,132.64,0.05089553]
[1725473152546,0.04883573,132.67,132.64,3.82009553]
[1725473153052,3.81753573,132.67,132.64,3.82009553]
[1725473153450,3.81753573,132.67,132.65,3.769]
[1725473154256,3.7689,132.66,132.64,3.82009553]
[1725473154452,3.7689,132.66,132.64,0.05089553]
[1725473154956,3.7689,132.66,132.64,3.82029553]
[1725473158360,0.04883573,132.67,132.64,0.05089553]
[1725473158553,0.04883573,132.67,132.64,23.16089553]
[1725473158968,0.04883573,132.67,132.66,3.7688]
[1725473160363,0.04883573,132.67,132.64,0.05089553]
[1725473160860,0.04883573,132.67,132.64,3.82009553]
[1725473160861,3.7689,132.66,132.64,3.82009553]
[1725473161268,0.04883573,132.67,132.64,0.05089553]
[1725473161556,0.04883573,132.67,132.65,3.7688]
[1725473161761,0.04883573,132.67,132.64,0.05089553]
[1725473161961,0.04883573,132.67,132.66,3.7688]
[1725473162565,0.04883573,132.67,132.66,26.8788]
[1725473162758,3.75075392,132.73,132.69,3.7679]
[1725473163864,0.05636757,132.72,132.7,0.0578285]
[1725473164057,0.05636757,132.72,132.7,23.1650631]
[1725473164058,0.05155012,132.72,132.7,23.1650631]
[1725473164261,0.05155012,132.72,132.7,26.90450821]
[1725473164862,0.05155012,132.72,132.71,3.7674]
[1725473166064,0.05155012,132.72,132.7,30.67210821]
[1725473167165,0.05155012,132.72,132.71,3.7674]
[1725473167963,0.05155012,132.72,132.7,0.0550631]
[1725473169464,0.05155012,132.72,132.7,3.8225631]
[1725473169859,0.05155012,132.72,132.71,3.7674]
[1725473171257,0.05155012,132.72,132.7,0.0550631]
[1725473171864,3.81875012,132.72,132.7,0.0550631]
[1725473172267,3.81875012,132.72,132.71,23.11]
[1725473172268,0.05155012,132.72,132.71,23.11]
[1725473172661,0.05155012,132.72,132.71,26.8774]
[1725473172866,0.05155012,132.72,132.71,3.7674]
[1725473174873,3.7661,132.76,132.73,3.7667]
[1725473175173,3.7661,132.76,132.71,23.11]
[1725473175373,23.11,132.8,132.71,23.11]
[1725473175873,0.05267287,132.76,132.74,0.05025904]
[1725473176462,0.05267287,132.76,132.75,3.7662]
[1725473176665,0.05267287,132.76,132.75,26.8762]
[1725473177265,3.82104104,132.84,132.78,3.7653]
[1725473177471,3.82104104,132.84,132.73,23.11]
[1725473177472,3.82104104,132.84,132.79,23.11]
[1725473177664,3.82104104,132.84,132.73,23.11]
[1725473177665,5.15225802,132.86,132.8,23.11]
[1725473177868,5.15225802,132.86,132.81,3.7644]
[1725473178172,3.7637,132.84,132.81,3.7644]
[1725473178676,3.82012935,132.84,132.81,3.8156337]
[1725473179681,0.05642935,132.84,132.81,0.0512337]
[1725473180473,0.05642935,132.84,132.82,3.7641]
[1725473182683,0.05642935,132.84,132.81,0.0512337]
[1725473183375,3.82022935,132.84,132.81,3.8156337]
[1725473183768,3.82012935,132.84,132.81,3.8156337]
[1725473184179,0.05642935,132.84,132.81,0.0512337]
[1725473184773,0.05642935,132.84,132.82,3.7643]
[1725473185478,0.05642935,132.84,132.83,3.764]
[1725473185675,0.05642935,132.84,132.83,26.874]
[1725473186580,0.05642935,132.84,132.83,3.764]
[1725473186882,0.05642935,132.84,132.82,3.7642]
[1725473187473,0.05642935,132.84,132.81,23.1612337]
[1725473187474,3.82012935,132.84,132.81,3.8156337]
[1725473188377,0.05642935,132.84,132.82,3.7642]
[1725473189378,0.05642935,132.84,132.81,0.0512337]
[1725473189584,3.76445524,132.84,132.81,0.0512337]
[1725473189875,3.7643,132.82,132.81,0.0512337]
[1725473191777,3.7658,132.77,132.74,25.8771]
[1725473191987,3.7658,132.77,132.75,3.77749205]
[1725473192180,23.11,132.83,132.74,24.5123]
[1725473192386,23.11,132.83,132.74,28.35230463]
[1725473192586,3.7656,132.78,132.75,3.7661]
[1725473192789,23.11,132.83,132.74,28.35230463]
[1725473192982,3.7656,132.78,132.75,3.815961]
[1725473193177,3.81720789,132.78,132.75,3.82113454]
[1725473193677,3.7658,132.77,132.75,0.05493454]
[1725473194384,3.7658,132.77,132.75,3.82113454]
[1725473194575,3.81710789,132.78,132.75,3.82113454]
[1725473194778,0.05160789,132.78,132.76,23.11]
[1725473195181,0.05160789,132.78,132.77,3.7657]
[1725473195887,3.7645,132.82,132.79,3.765]
[1725473196182,24.4472,132.87,132.79,3.765]
[1725473196183,24.4472,132.87,132.79,23.11]
[1725473196393,28.1393802,132.87,132.79,23.11]
[1725473196581,28.1393802,132.87,132.77,23.11]
[1725473196781,3.7649,132.8,132.77,23.11]
[1725473196977,3.81274608,132.8,132.78,3.7653]
[1725473197177,0.04784608,132.8,132.77,23.16339538]
[1725473197377,0.04784608,132.8,132.77,0.05339538]
[1725473198680,0.04784608,132.8,132.77,3.81889538]
[1725473199183,0.04784608,132.8,132.77,0.05339538]
[1725473199781,3.7653,132.79,132.77,0.05339538]
[1725473201189,3.7654,132.78,132.77,0.05339538]
[1725473202580,0.04784608,132.8,132.77,0.05339538]
[1725473202985,3.7652,132.79,132.77,0.05339538]
[1725473203190,3.7652,132.79,132.77,3.81909538]
[1725473203383,0.04784608,132.8,132.78,23.11]
[1725473203788,0.04784608,132.8,132.79,3.7651]
[1725473205383,3.6921802,132.87,132.81,3.7645]
[1725473205581,23.11,132.88,132.81,7.56477112]
[1725473205582,3.7638,132.84,132.81,7.56477112]
[1725473205984,3.7636,132.85,132.82,26.8741]
[1725473206188,23.11,132.9,132.78,4.1092]
[1725473206189,2.8014,132.91,132.78,4.1092]
[1725473206387,1.4351,132.91,132.86,23.11]
[1725473206586,3.7622,132.9,132.87,0.05690729]
[1725473206793,3.81308914,132.9,132.87,0.05690729]
[1725473206989,0.05088914,132.9,132.87,0.05690729]
[1725473207190,3.81298914,132.9,132.88,23.11]
[1725473207693,3.81298914,132.9,132.87,3.81960729]
[1725473210591,0.05088914,132.9,132.88,3.7625]
[1725473210992,0.05088914,132.9,132.88,23.11]
[1725473211298,0.05088914,132.9,132.89,26.8723]
[1725473212396,0.05088914,132.9,132.88,23.11]
[1725473212998,0.05088914,132.9,132.89,3.7623]
[1725473213195,0.05088914,132.9,132.88,23.11]
[1725473213397,0.05088914,132.9,132.87,1.44320729]
[1725473213793,0.05088914,132.9,132.89,3.7623]
[1725473216594,3.761,132.94,132.91,3.7615]
[1725473217201,3.7612,132.93,132.9,26.8719]
[1725473217401,2.7237,132.97,132.88,23.11]
[1725473217601,0.0485047,132.94,132.91,0.05179082]
[1725473217802,3.7611,132.93,132.91,0.05179082]
[1725473218511,3.7614,132.92,132.91,0.05179082]
[1725473225805,0.0485047,132.94,132.91,0.05179082]
[1725473226205,3.7612,132.93,132.91,0.05179082]
[1725473226405,0.0485047,132.94,132.91,0.05179082]
[1725473226808,3.8095047,132.94,132.92,3.7613]
[1725473227008,0.0485047,132.94,132.92,3.7613]
[1725473227719,0.0485047,132.94,132.91,0.05179082]
[1725473228116,0.0485047,132.94,132.92,23.11]
[1725473228317,0.0485047,132.94,132.93,3.7611]
[1725473228516,25.93,133.02,132.92,26.89555304]
[1725473228817,25.93,133.02,132.96,26.8701]
[1725473228818,3.7596,132.99,132.96,26.8701]
[1725473229328,6.65559066,133.02,132.96,26.8701]
[1725473229510,6.65559066,133.02,132.98,0.05291487]
[1725473229716,3.83559066,133.02,132.98,0.05291487]
[1725473229919,3.7591,133.01,132.98,3.81251487]
[1725473230323,1.4389,133.05,132.98,3.81251487]
[1725473230324,1.4389,133.05,132.98,0.05291487]
[1725473230514,3.7588,133.02,132.99,3.7594]
[1725473230710,3.7588,133.02,132.99,3.81447911]
[1725473230920,3.7588,133.02,132.99,0.05507911]
[1725473232322,3.7584,133.03,132.99,23.16507911]
[1725473232627,2.7578,133.06,133.01,23.11]
[1725473232628,3.69462203,133.06,133.01,23.11]
[1725473232926,2.8824,133.09,133.03,23.11]
[1725473233217,3.7568,133.09,133.05,26.92214536]
[1725473233420,3.7568,133.09,133.05,23.16454536]
[1725473233621,3.73684432,133.1,133.05,23.16454536]
[1725473233823,3.7566,133.09,133.06,3.7573]
[1725473234118,3.7566,133.09,133.06,0.05595864]
[1725473234312,7.49344432,133.1,133.06,3.81325864]
[1725473234517,23.11,133.14,133.07,0.05584608]
[1725473234823,23.11,133.16,133.07,3.80735059]
[1725473235027,23.11,133.16,133.1,0.0512557]
[1725473236120,3.7561,133.11,133.1,0.0512557]
[1725473236720,3.7558,133.12,133.1,0.0512557]
[1725473237018,4.1679,133.17,133.1,0.0512557]
[1725473237218,4.1679,133.17,133.1,3.8075557]
[1725473237424,3.7557,133.13,133.1,0.0512557]
[1725473238020,3.84919142,133.2,133.12,23.11]
[1725473238219,27.234,133.21,133.15,0.04869159]
[1725473238425,0.36891256,133.2,133.15,0.04869159]
[1725473238627,3.7549,133.16,133.15,0.04869159]
[1725473243127,3.7556,133.13,133.08,1.3311]
[1725473243328,23.11,133.17,133.08,1.3311]
[1725473243329,23.11,133.17,133.08,24.4411]
[1725473243520,23.11,133.17,133.11,3.756]
[1725473243925,23.11,133.19,133.11,3.756]
[1725473244127,0.36898665,133.18,133.11,3.756]
[1725473244327,0.04799481,133.16,133.13,0.05171461]
[1725473244825,3.7552,133.14,133.13,0.05171461]
[1725473245026,7.59741528,133.14,133.13,0.05171461]
[1725473245228,3.7552,133.14,133.13,0.05171461]
[1725473245828,7.43514752,133.14,133.13,0.05171461]
[1725473247428,3.7552,133.14,133.13,0.05171461]
[1725473247932,7.52736711,133.14,133.13,0.05171461]
[1725473249333,3.7565,133.1,133.01,7.5174]
[1725473249631,2.8261,133.15,133.06,23.11]
[1725473250030,2.8261,133.15,133.07,26.8671]
[1725473250225,2.8261,133.15,133.07,23.11]
[1725473250536,3.7561,133.11,133.1,0.04821276]
[1725473251128,3.81746692,133.12,132.99,3.75667544]
[1725473251429,23.11,133.09,133.0,23.11]
[1725473251827,23.11,133.06,132.96,4.0649]
[1725473252029,23.11,133.06,132.97,3.68622736]
[1725473252329,0.05691709,133.03,133.0,0.05191172]
[1725473252830,3.7589,133.01,133.0,0.05191172]
[1725473253136,0.05691709,133.03,133.0,0.05191172]
[1725473253535,3.7588,133.02,133.0,0.05191172]
[1725473254336,3.81531709,133.03,133.0,0.05191172]
[1725473254937,0.05691709,133.03,133.0,0.05191172]
[1725473255535,3.81541709,133.03,133.0,0.05191172]
[1725473256231,3.7586,133.02,133.0,0.05191172]
[1725473257436,3.81541709,133.03,133.0,0.05191172]
[1725473257637,0.05691709,133.03,133.0,0.05191172]
[1725473258139,3.7588,133.02,133.0,0.05191172]
[1725473259139,3.7589,133.01,133.0,0.05191172]
[1725473264841,3.7602,132.97,132.94,26.8707]
[1725473265142,3.79775872,133.05,132.93,26.78339362]
[1725473265143,23.11,133.01,132.93,26.78339362]
[1725473265348,3.7601,132.97,132.93,23.11]
[1725473265543,1.3369,133.07,132.96,23.11]
[1725473265750,24.4469,133.07,132.96,23.11]
[1725473265941,24.4469,133.07,132.96,26.8702]
[1725473266144,0.05188729,133.03,133.0,0.04766221]
[1725473266346,3.78394414,133.02,133.0,0.04766221]
[1725473266749,3.7589,133.01,133.0,0.04766221]
[1725473274847,3.90052066,133.03,133.0,0.04766221]
[1725473276352,3.7587,133.02,133.0,0.04766221]
[1725473276954,3.7589,133.01,133.0,0.04766221]
[1725473280550,3.7587,133.02,133.0,0.04766221]
[1725473280748,0.05188729,133.03,133.01,23.11]
[1725473281249,0.05188729,133.03,133.01,26.8687]
[1725473282856,0.05188729,133.03,133.02,3.7586]
[1725473283057,0.05188729,133.03,133.01,23.11]
[1725473283558,0.05188729,133.03,133.01,26.8687]
[1725473284953,3.81028729,133.03,133.01,26.8687]
[1725473285149,0.05188729,133.03,133.0,0.04766221]
[1725473285462,3.73638232,133.03,133.0,0.04766221]
[1725473285758,3.7588,133.02,133.0,0.04766221]
[1725473286453,3.7589,133.01,133.0,0.04766221]
[1725473288350,3.78487736,133.03,133.0,0.04766221]
[1725473288351,0.05188729,133.03,133.0,0.04766221]
[1725473288658,0.05188729,133.03,133.01,3.72687949]
[1725473288960,0.05188729,133.03,133.02,3.7586]
[1725473289551,24.4813,133.1,133.02,23.11]
[1725473289758,28.27209248,133.1,133.02,23.11]
[1725473289951,3.7578,133.05,133.02,23.11]
[1725473290151,3.7578,133.05,133.02,26.8684]
[1725473290661,3.8089569,133.05,133.02,26.91888136]
[1725473290861,3.8089569,133.05,133.02,3.80888136]
[1725473291063,3.7583,133.03,133.02,0.05048136]
[1725473292267,23.1611569,133.05,133.02,0.05048136]
[1725473292556,26.98784186,133.05,133.02,0.05048136]
[1725473292756,3.7583,133.03,133.02,0.05048136]
[1725473293957,7.46469624,133.03,133.02,0.05048136]
[1725473295159,3.70639624,133.03,132.94,2.7665]
[1725473295367,23.11,132.99,132.91,1.3119]
[1725473295659,23.11,132.99,132.91,5.0736]
[1725473295660,3.7609,132.94,132.91,5.0736]
[1725473296061,3.81310378,132.94,132.91,5.12167424]
[1725473296264,0.05220378,132.94,132.91,5.12167424]
[1725473298472,3.81310378,132.94,132.91,5.12167424]
[1725473298672,3.81310378,132.94,132.91,1.35997424]
[1725473299671,3.81310378,132.94,132.91,5.12157424]
[1725473300271,0.05220378,132.94,132.91,0.04807424]
[1725473300971,3.7614,132.92,132.91,0.04807424]
[1725473301572,3.7614,132.93,132.91,0.04807424]
[1725473302169,0.05220378,132.94,132.91,0.04807424]
[1725473302367,0.05220378,132.94,132.91,23.15807424]
[1725473304682,0.05220378,132.94,132.93,3.7611]
[1725473305376,3.7602,132.97,132.94,3.7608]
[1725473306472,3.80984081,132.97,132.94,3.80888595]
[1725473307078,0.04964081,132.97,132.95,3.7606]
[1725473307887,3.80974081,132.97,132.94,7.53028515]
[1725473308480,0.04964081,132.97,132.94,3.76968515]
[1725473308680,0.04964081,132.97,132.94,3.82103091]
[1725473308887,0.04964081,132.97,132.95,23.11]
[1725473309084,0.04964081,132.97,132.96,7.53813463]